bitfinex/quotes_BTCUSD_20250705
["timestamp","ask_amount","ask_price","bid_price","bid_amount"]
[1751714977538,0.23043816,108330.0,108320.0,0.37078554]
[1751714977761,0.02653734,108330.0,108320.0,0.68202466]
[1751714977975,0.21197734,108330.0,108320.0,0.68202466]
[1751714983451,0.22120771,108330.0,108320.0,0.40288554]
[1751714983655,0.22120762,108330.0,108320.0,0.68202466]
[1751714985041,0.21197734,108330.0,108320.0,0.68202466]
[1751714985481,0.22120762,108330.0,108320.0,0.68202466]
[1751714985692,0.21197734,108330.0,108320.0,0.68202466]
[1751714985903,0.22120762,108330.0,108320.0,0.40288554]
[1751714986112,0.22120762,108330.0,108320.0,0.68202466]
[1751714986498,0.21197734,108330.0,108320.0,0.68202466]
[1751714987661,0.21197734,108330.0,108320.0,0.66632466]
[1751714988567,0.21197734,108330.0,108320.0,0.68202466]
[1751714991425,0.22120762,108330.0,108320.0,0.66632466]
[1751714992378,0.21197734,108330.0,108320.0,0.66632466]
[1751714995680,0.21198318,108330.0,108320.0,0.66632466]
[1751715000276,0.02654318,108330.0,108320.0,0.68086551]
[1751715000491,0.21198318,108330.0,108320.0,0.69736551]
[1751715002031,0.21198318,108330.0,108320.0,0.97650463]
[1751715002234,0.21198318,108330.0,108320.0,0.69736551]
[1751715002370,0.02654318,108330.0,108320.0,0.69736551]
[1751715017421,0.02654318,108330.0,108320.0,0.74224551]
[1751715019710,0.02654318,108330.0,108320.0,0.46310639]
[1751715019911,0.02654318,108330.0,108320.0,0.72574551]
[1751715027010,0.02654988,108330.0,108320.0,0.72574551]
[1751715027612,0.02654988,108330.0,108320.0,0.44660639]
[1751715027821,0.02654988,108330.0,108320.0,0.72574551]
[1751715028048,0.02654988,108330.0,108320.0,1.11172156]
[1751715030461,0.0265462,108330.0,108320.0,1.11172156]
[1751715034492,0.0265462,108330.0,108320.0,0.83258244]
[1751715036299,0.0265462,108330.0,108320.0,1.01818244]
[1751715038181,0.0265462,108330.0,108320.0,1.29732156]
[1751715038451,0.0265462,108330.0,108320.0,1.01818244]
[1751715047887,0.0265462,108330.0,108320.0,1.29732156]
[1751715048094,0.0265462,108330.0,108320.0,1.01818244]
[1751715050947,0.00437078,108330.0,108320.0,1.01818244]
[1751715051502,0.00437078,108330.0,108320.0,0.73904332]
[1751715051702,0.00437078,108330.0,108320.0,1.29732156]
[1751715054142,0.00337078,108330.0,108320.0,1.29732156]
[1751715054347,0.00337078,108330.0,108320.0,1.29832156]
[1751715055590,0.00237078,108330.0,108320.0,1.29832156]
[1751715069138,0.00237078,108330.0,108320.0,1.29732156]
[1751715069778,0.00237078,108330.0,108320.0,1.29932156]
[1751715069980,0.00237078,108330.0,108320.0,1.30132156]
[1751715076543,0.00237078,108330.0,108320.0,0.74304332]
[1751715076740,0.00237078,108330.0,108320.0,1.30132156]
[1751715094546,0.00237078,108330.0,108320.0,1.64132156]
[1751715101669,0.00237078,108330.0,108320.0,1.08304332]
[1751715102116,0.00237078,108330.0,108320.0,1.64132156]
[1751715104293,0.00237078,108330.0,108320.0,1.62592156]
[1751715125833,0.00237078,108330.0,108320.0,1.60952156]
[1751715127396,0.00237078,108330.0,108320.0,1.62562156]
[1751715130114,0.0332363,108340.0,108330.0,0.8314523]
[1751715130316,0.01828335,108340.0,108330.0,1.10852923]
[1751715139692,0.01828335,108340.0,108330.0,1.15352923]
[1751715146957,0.03448335,108340.0,108330.0,0.64375011]
[1751715147155,0.31362247,108340.0,108330.0,0.70329096]
[1751715147680,0.34925581,108340.0,108330.0,0.70329096]
[1751715148028,0.34925581,108340.0,108330.0,0.65829096]
[1751715148227,0.34925581,108340.0,108330.0,0.70329096]
[1751715151310,0.31362247,108340.0,108330.0,0.70329096]
[1751715153486,0.03448335,108340.0,108330.0,0.70329096]
[1751715156305,0.31362247,108340.0,108330.0,0.70329096]
[1751715157144,0.03448335,108340.0,108330.0,0.70329096]
[1751715157359,0.31362247,108340.0,108330.0,0.70329096]
[1751715159347,0.03448335,108340.0,108330.0,0.70329096]
[1751715161737,0.01828335,108340.0,108330.0,0.70329096]
[1751715162601,0.01828335,108340.0,108330.0,0.98243008]
[1751715163486,0.01828335,108340.0,108330.0,0.70329096]
[1751715163699,0.03328335,108340.0,108330.0,0.70329096]
[1751715165679,0.01828335,108340.0,108330.0,0.70329096]
[1751715174728,0.01828335,108340.0,108330.0,0.98243008]
[1751715175447,0.04045488,108340.0,108330.0,0.98243008]
[1751715176946,0.02545488,108340.0,108330.0,0.98243008]
[1751715177297,0.02545488,108340.0,108330.0,1.18359008]
[1751715183675,0.00328335,108340.0,108330.0,1.18359008]
[1751715190897,0.00328335,108340.0,108330.0,1.16799008]
[1751715192492,0.00328335,108340.0,108330.0,0.88885096]
[1751715192902,0.00328335,108340.0,108330.0,1.16799008]
[1751715193032,0.00328335,108340.0,108330.0,0.88885096]
[1751715193230,0.00328335,108340.0,108330.0,0.70329096]
[1751715194278,0.29782247,108340.0,108330.0,0.70329096]
[1751715196583,0.33115959,108340.0,108330.0,0.70329096]
[1751715196807,0.34725959,108340.0,108330.0,0.70329096]
[1751715199190,0.33115959,108340.0,108330.0,0.70329096]
[1751715199615,0.33115959,108340.0,108330.0,0.70321096]
[1751715207631,0.29782247,108340.0,108330.0,0.70321096]
[1751715208040,0.28242247,108340.0,108330.0,0.70321096]
[1751715209902,0.29752247,108340.0,108330.0,0.70321096]
[1751715211126,0.29752247,108340.0,108330.0,0.68867011]
[1751715211332,0.29752247,108340.0,108330.0,0.70321096]
[1751715214313,0.31269106,108340.0,108330.0,0.70321096]
[1751715214444,0.29752247,108340.0,108330.0,0.70321096]
[1751715214646,0.29752247,108340.0,108330.0,0.68867011]
[1751715215511,0.29752247,108340.0,108330.0,0.70321096]
[1751715219565,0.31969505,108340.0,108330.0,0.70311797]
[1751715220396,0.37224636,108340.0,108330.0,0.70311797]
[1751715222408,0.35714636,108340.0,108330.0,0.70311797]
[1751715227379,0.07800724,108340.0,108330.0,0.70311797]
[1751715227557,0.35714636,108340.0,108330.0,0.70311797]
[1751715234350,0.35714636,108340.0,108330.0,0.71811797]
[1751715236539,0.07800724,108340.0,108330.0,0.71811797]
[1751715241606,0.07800724,108340.0,108330.0,0.70311797]
[1751715243634,0.35714636,108340.0,108330.0,0.70311797]
[1751715243845,0.33497378,108340.0,108330.0,0.70311797]
[1751715244056,0.35715005,108340.0,108330.0,0.71931797]
[1751715246279,0.07801093,108340.0,108330.0,0.71931797]
[1751715247580,0.35715005,108340.0,108330.0,0.71931797]
[1751715247982,0.07801093,108340.0,108330.0,0.71931797]
[1751715248191,0.07801093,108340.0,108330.0,0.70311797]
[1751715249180,0.37325005,108340.0,108330.0,0.70311797]
[1751715250883,0.35715005,108340.0,108330.0,0.70311797]
[1751715256871,0.35715005,108340.0,108330.0,0.71861797]
[1751715257830,0.35715005,108340.0,108330.0,0.70311797]
[1751715258445,0.35715005,108340.0,108330.0,0.71861797]
[1751715258627,0.07801093,108340.0,108330.0,0.71861797]
[1751715261176,0.02545962,108340.0,108330.0,0.71861797]
[1751715261732,0.02545962,108340.0,108330.0,0.99775709]
[1751715263352,0.02545962,108340.0,108330.0,0.71861797]
[1751715263502,0.02545962,108340.0,108330.0,0.99775709]
[1751715265642,0.02545962,108340.0,108330.0,0.71861797]
[1751715265846,0.08528708,108340.0,108330.0,0.99775709]
[1751715267014,0.08528708,108340.0,108330.0,0.71861797]
[1751715267344,0.02545962,108340.0,108330.0,0.71861797]
[1751715269202,0.02545962,108340.0,108330.0,0.99775709]
[1751715282872,0.02545962,108340.0,108330.0,1.04775709]
[1751715303538,0.02545995,108340.0,108330.0,1.04775709]
[1751715303741,0.02545995,108340.0,108330.0,1.06425709]
[1751715305777,0.00328335,108340.0,108330.0,1.06425709]
[1751715306091,0.00328335,108340.0,108330.0,0.78511797]
[1751715306303,0.00328335,108340.0,108330.0,1.06425709]
[1751715306536,0.02545987,108340.0,108330.0,1.06425709]
[1751715310472,0.02545987,108340.0,108330.0,1.24969709]
[1751715310695,0.00328335,108340.0,108330.0,1.24969709]
[1751715337472,0.00328335,108340.0,108330.0,1.23319709]
[1751715364406,0.00328335,108340.0,108330.0,0.95405797]
[1751715364625,0.00328335,108340.0,108330.0,1.23319709]
[1751715365581,0.00328335,108340.0,108330.0,1.21769709]
[1751715367800,0.00328335,108340.0,108330.0,1.03225709]
[1751715368102,0.00328335,108340.0,108330.0,1.21765709]
[1751715368298,0.01868335,108340.0,108330.0,1.21761709]
[1751715381431,0.00328335,108340.0,108330.0,1.21761709]
[1751715381880,0.00328335,108340.0,108330.0,1.23371709]
[1751715384866,0.00328335,108340.0,108330.0,1.24961709]
[1751715386981,0.00328335,108340.0,108330.0,1.23371709]
[1751715387405,0.00328335,108340.0,108330.0,1.52875621]
[1751715387614,0.00328335,108340.0,108330.0,1.24961709]
[1751715388683,0.00328335,108340.0,108330.0,1.25161709]
[1751715389930,0.00328335,108340.0,108330.0,1.25361709]
[1751715393841,0.00328335,108340.0,108330.0,1.23771709]
[1751715394022,0.00328335,108340.0,108330.0,1.25371709]
[1751715399343,0.00328335,108340.0,108330.0,1.23771709]
[1751715399719,0.00328335,108340.0,108330.0,1.25361709]
[1751715409570,0.00328335,108340.0,108330.0,1.23771709]
[1751715426508,0.00328335,108340.0,108330.0,1.23776709]
[1751715426734,0.00338335,108340.0,108330.0,1.23776709]
[1751715444217,0.00338335,108340.0,108330.0,1.51690621]
[1751715445293,0.00338335,108340.0,108330.0,1.23776709]
[1751715445701,0.00338335,108340.0,108330.0,1.53350621]
[1751715446290,0.00209137,108350.0,108340.0,0.55229359]
[1751715446497,0.00209137,108350.0,108340.0,1.40240876]
[1751715447570,0.00209137,108350.0,108340.0,1.43006099]
[1751715449273,0.00209137,108350.0,108340.0,1.48006099]
[1751715449459,0.00209137,108350.0,108340.0,0.92178275]
[1751715449686,0.00209137,108350.0,108340.0,1.48006099]
[1751715453250,0.00182452,108350.0,108340.0,1.48006099]
[1751715459869,0.00182452,108350.0,108340.0,1.58846375]
[1751715460494,0.00182452,108350.0,108340.0,1.03018551]
[1751715460693,0.00182452,108350.0,108340.0,1.03023551]
[1751715461098,0.00182452,108350.0,108340.0,1.58851375]
[1751715463386,0.00182452,108350.0,108340.0,1.66581977]
[1751715463663,0.00182452,108350.0,108340.0,1.58851375]
[1751715466418,0.00182452,108350.0,108340.0,1.63339375]
[1751715470538,0.00182452,108350.0,108340.0,1.07511551]
[1751715470748,0.00182452,108350.0,108340.0,1.63339375]
[1751715481464,0.00182452,108350.0,108340.0,1.07511551]
[1751715481660,0.00182452,108350.0,108340.0,1.63339375]
[1751715498672,0.00182452,108350.0,108340.0,1.07511551]
[1751715498919,0.00182452,108350.0,108340.0,1.63339375]
[1751715517146,0.00182452,108350.0,108340.0,1.07511551]
[1751715517348,0.00182452,108350.0,108340.0,1.63339375]
[1751715517923,0.00182452,108350.0,108340.0,1.44799375]
[1751715532427,0.00182452,108350.0,108340.0,0.88971551]
[1751715532641,0.00182452,108350.0,108340.0,1.44799375]
[1751715535639,0.00182452,108350.0,108340.0,1.52529977]
[1751715535842,0.00182452,108350.0,108340.0,1.44799375]
[1751715568077,0.00182452,108350.0,108340.0,1.44999375]
[1751715569167,0.00182452,108350.0,108340.0,1.45199375]
[1751715571667,0.00182452,108350.0,108340.0,0.89371551]
[1751715571870,0.00182452,108350.0,108340.0,1.45199375]
[1751715583089,0.00182452,108350.0,108340.0,1.63727375]
[1751715583318,0.00182452,108350.0,108340.0,1.65367375]
[1751715586795,0.00182452,108350.0,108340.0,1.6682146]
[1751715600611,0.00182452,108350.0,108340.0,1.10993636]
[1751715600830,0.00182452,108350.0,108340.0,1.6518146]
[1751715624650,0.00182452,108350.0,108340.0,1.09353636]
[1751715624859,0.00182452,108350.0,108340.0,1.6518146]
[1751715634278,0.00182452,108350.0,108340.0,0.86337636]
[1751715634502,0.00182452,108350.0,108340.0,1.6366946]
[1751715645376,0.00182452,108350.0,108340.0,1.6516946]
[1751715659975,0.00182452,108350.0,108340.0,1.6668946]
[1751715664716,0.00182452,108350.0,108340.0,1.6516946]
[1751715666732,0.00182452,108350.0,108340.0,1.09341636]
[1751715666934,0.00182452,108350.0,108340.0,1.6516946]
[1751715667345,0.00182452,108350.0,108340.0,1.6670946]
[1751715672735,0.00182452,108350.0,108340.0,1.6516946]
[1751715676112,0.00182452,108350.0,108340.0,1.6678946]
[1751715681791,0.00182452,108350.0,108340.0,1.6516946]
[1751715682167,0.00182452,108350.0,108340.0,1.6671946]
[1751715682924,0.00182452,108350.0,108340.0,1.6516946]
[1751715686916,1e-08,108350.0,108340.0,1.6516946]
[1751715688161,1e-08,108350.0,108340.0,1.6671946]
[1751715694945,1e-08,108350.0,108340.0,1.94633372]
[1751715695445,1e-08,108350.0,108340.0,1.97406772]
[1751715695993,1e-08,108350.0,108340.0,1.6929286]
[1751715696421,1e-08,108350.0,108340.0,1.6989286]
[1751715696679,1e-08,108350.0,108340.0,1.6969286]
[1751715696887,1e-08,108350.0,108340.0,1.6999286]
[1751715703581,0.05606485,108370.0,108360.0,0.22679526]
[1751715703791,0.0339,108370.0,108360.0,1.06175043]
[1751715703998,0.03394704,108370.0,108360.0,1.10655043]
[1751715704660,0.03394704,108370.0,108360.0,1.10755043]
[1751715705498,0.03394704,108370.0,108360.0,1.10855043]
[1751715705905,0.03394704,108370.0,108360.0,1.11799411]
[1751715707371,0.01804704,108370.0,108360.0,1.11799411]
[1751715709614,0.01764704,108370.0,108360.0,1.11799411]
[1751715713379,0.03414704,108370.0,108360.0,1.11799411]
[1751715713958,0.01764704,108370.0,108360.0,1.11799411]
[1751715716206,0.00204704,108370.0,108360.0,1.11799411]
[1751715717192,0.01754704,108370.0,108360.0,1.11799411]
[1751715719413,0.01754704,108370.0,108360.0,0.55971587]
[1751715719616,0.01754704,108370.0,108360.0,1.11799411]
[1751715724310,0.0173319,108370.0,108360.0,1.11799411]
[1751715727822,0.0018319,108370.0,108360.0,1.11799411]
[1751715728138,0.0178319,108370.0,108360.0,1.11799411]
[1751715728336,0.0018319,108370.0,108360.0,1.11799411]
[1751715729198,0.0178319,108370.0,108360.0,1.11799411]
[1751715731163,0.0178319,108370.0,108360.0,1.11809411]
[1751715731366,0.0178819,108370.0,108360.0,1.11809411]
[1751715745630,0.0018819,108370.0,108360.0,1.11809411]
[1751715745837,0.0018819,108370.0,108360.0,1.13319411]
[1751715747109,0.0018819,108370.0,108360.0,0.55981587]
[1751715747310,0.0018819,108370.0,108360.0,1.11809411]
[1751715747833,0.0018819,108370.0,108360.0,1.13319411]
[1751715765119,0.0018819,108370.0,108360.0,0.57491587]
[1751715765271,0.0018819,108370.0,108360.0,0.85405499]
[1751715765674,0.0018819,108370.0,108360.0,0.57491587]
[1751715765871,0.0018819,108370.0,108360.0,0.85405499]
[1751715766454,0.0018819,108370.0,108360.0,0.55981587]
[1751715766779,0.0018819,108370.0,108360.0,0.83895499]
[1751715768002,0.0174819,108370.0,108360.0,0.55981587]
[1751715768215,0.0174819,108370.0,108360.0,0.83895499]
[1751715768953,0.0174819,108370.0,108360.0,0.55981587]
[1751715769200,0.0174819,108370.0,108360.0,0.83895499]
[1751715769809,0.0174819,108370.0,108360.0,0.88895499]
[1751715771007,0.0174819,108370.0,108360.0,0.65891499]
[1751715771219,0.0174819,108370.0,108360.0,0.88891499]
[1751715771646,0.0174819,108370.0,108360.0,0.60977587]
[1751715771874,0.0174819,108370.0,108360.0,0.88891499]
[1751715784271,0.0174819,108370.0,108360.0,0.60977587]
[1751715784480,0.0174819,108370.0,108360.0,0.88891499]
[1751715785279,0.0018819,108370.0,108360.0,0.88891499]
[1751715786134,0.0341819,108370.0,108360.0,0.88899499]
[1751715786340,0.06773091,108370.0,108360.0,0.37977587]
[1751715786486,0.31332102,108370.0,108360.0,0.40059134]
[1751715786696,0.33549153,108370.0,108360.0,0.35579134]
[1751715786894,0.33549153,108370.0,108360.0,0.35059134]
[1751715787094,0.33549153,108370.0,108360.0,0.25915441]
[1751715787293,0.16624334,108370.0,108360.0,0.25815441]
[1751715787531,0.44538238,108370.0,108360.0,0.25715441]
[1751715787921,0.45560951,108370.0,108360.0,0.25715441]
[1751715788125,0.44538238,108370.0,108360.0,0.25715441]
[1751715789419,0.43615533,108370.0,108360.0,0.25715441]
[1751715789587,0.44538229,108370.0,108360.0,0.25715441]
[1751715789998,0.44838229,108370.0,108360.0,0.25715441]
[1751715790265,0.44938229,108370.0,108360.0,0.25715441]
[1751715790415,0.43092846,108370.0,108360.0,0.25715441]
[1751715790616,0.33949153,108370.0,108360.0,0.25715441]
[1751715790931,0.31732102,108370.0,108360.0,0.25715441]
[1751715791132,0.33949153,108370.0,108360.0,0.25715441]
[1751715791529,0.31732102,108370.0,108360.0,0.25715441]
[1751715792320,0.0381819,108370.0,108360.0,0.25715441]
[1751715792525,0.31732102,108370.0,108360.0,0.25715441]
[1751715793261,0.40325118,108370.0,108360.0,0.25715441]
[1751715793463,0.42542169,108370.0,108360.0,0.25715441]
[1751715797278,0.33949153,108370.0,108360.0,0.25715441]
[1751715805309,0.06035241,108370.0,108360.0,0.25715441]
[1751715805513,0.33949153,108370.0,108360.0,0.25715441]
[1751715810146,0.32329153,108370.0,108360.0,0.25715441]
[1751715810339,0.04415241,108370.0,108360.0,0.25715441]
[1751715812863,0.1003333,108370.0,108360.0,0.25715441]
[1751715813058,0.1003333,108370.0,108360.0,0.53629353]
[1751715813262,0.04415241,108370.0,108360.0,0.53629353]
[1751715813603,0.04415241,108370.0,108360.0,0.25715441]
[1751715813806,0.04415241,108370.0,108360.0,0.53629353]
[1751715814297,0.02805241,108370.0,108360.0,0.64413046]
[1751715814525,0.02805241,108370.0,108360.0,0.62773046]
[1751715816946,0.04375241,108370.0,108360.0,0.62773046]
[1751715821004,0.10081594,108370.0,108360.0,0.62773046]
[1751715825647,0.08511594,108370.0,108360.0,0.62773046]
[1751715825881,0.02805241,108370.0,108360.0,0.62773046]
[1751715831671,0.02805241,108370.0,108360.0,0.64393046]
[1751715831846,0.02805241,108370.0,108360.0,0.62773046]
[1751715834647,0.02805241,108370.0,108360.0,0.64273046]
[1751715836955,0.02805241,108370.0,108360.0,0.36359134]
[1751715837300,0.02805241,108370.0,108360.0,0.64273046]
[1751715841799,0.02805241,108370.0,108360.0,0.36359134]
[1751715842240,0.02805241,108370.0,108360.0,0.64273046]
[1751715847738,0.02805241,108370.0,108360.0,0.92186958]
[1751715848318,0.02805241,108370.0,108360.0,0.64273046]
[1751715848754,0.02805241,108370.0,108360.0,0.92186958]
[1751715849239,0.02805241,108370.0,108360.0,0.64273046]
[1751715850306,0.02805241,108370.0,108360.0,0.93806958]
[1751715850709,0.02804834,108370.0,108360.0,0.93806958]
[1751715850922,0.02804834,108370.0,108360.0,0.65893046]
[1751715851339,0.02804834,108370.0,108360.0,0.93806958]
[1751715856765,0.02804834,108370.0,108360.0,0.64273046]
[1751715856967,0.02804834,108370.0,108360.0,0.92186958]
[1751715863084,0.02788698,108370.0,108360.0,0.92186958]
[1751715863300,0.02788698,108370.0,108360.0,0.36359134]
[1751715863510,0.02788698,108370.0,108360.0,0.92186958]
[1751715866306,0.02788698,108370.0,108360.0,0.36359134]
[1751715866484,0.02788698,108370.0,108360.0,0.64273046]
[1751715866960,0.02788698,108370.0,108360.0,0.92186958]
[1751715873492,0.02788698,108370.0,108360.0,0.64273046]
[1751715874488,0.02788698,108370.0,108360.0,0.92186958]
[1751715893731,0.02788698,108370.0,108360.0,0.36359134]
[1751715893900,0.02788698,108370.0,108360.0,0.92186958]
[1751715905889,0.02789041,108370.0,108360.0,0.92186958]
[1751715920125,0.02788849,108370.0,108360.0,0.92186958]
[1751715927430,0.02788849,108370.0,108360.0,1.92186958]
[1751715929344,0.02740441,108370.0,108360.0,1.92186958]
[1751715930893,0.02740441,108370.0,108360.0,1.36359134]
[1751715931109,0.02740441,108370.0,108360.0,1.92186958]
[1751715955235,0.02740441,108370.0,108360.0,1.36359134]
[1751715955539,0.02740441,108370.0,108360.0,1.92186958]
[1751715956787,0.02740441,108370.0,108360.0,1.36359134]
[1751715957091,0.02740441,108370.0,108360.0,1.92186958]
[1751715959253,0.02740441,108370.0,108360.0,1.36359134]
[1751715959401,0.02740441,108370.0,108360.0,1.92186958]
[1751715963191,0.02740441,108370.0,108360.0,1.36359134]
[1751715963420,0.02740441,108370.0,108360.0,1.92186958]
[1751715979703,0.02740441,108370.0,108360.0,1.92186958]
[1751715984438,0.02740441,108370.0,108360.0,1.87706958]
[1751715984652,0.02740441,108370.0,108360.0,1.92190958]
[1751715991242,0.02740441,108370.0,108360.0,1.36363134]
[1751715991420,0.02740441,108370.0,108360.0,1.92190958]
[1751715991741,0.02740441,108370.0,108360.0,1.92097858]
[1751715994901,0.05830034,108370.0,108360.0,1.92097858]
[1751716001495,0.02740441,108370.0,108360.0,1.92097858]
[1751716021756,0.02740441,108370.0,108360.0,1.36270034]
[1751716021964,0.02740441,108370.0,108360.0,1.92097858]
[1751716031566,0.02740441,108370.0,108360.0,2.22097858]
[1751716032296,0.04240441,108370.0,108360.0,2.20597858]
[1751716032475,0.02740441,108370.0,108360.0,2.20597858]
[1751716032678,0.05818834,108370.0,108360.0,2.20597858]
[1751716033071,0.03602039,108370.0,108360.0,2.20597858]
[1751716033352,0.03602039,108370.0,108360.0,2.22237858]
[1751716035401,0.05819085,108370.0,108360.0,2.22237858]
[1751716051946,0.05819085,108370.0,108360.0,2.33078134]
[1751716063638,0.05818923,108370.0,108360.0,2.33078134]
[1751716069202,0.05818923,108370.0,108360.0,1.7725031]
[1751716069410,0.05818912,108370.0,108360.0,2.33078134]
[1751716074445,0.02740519,108370.0,108360.0,2.33078134]
[1751716075180,0.02740521,108370.0,108360.0,2.33078134]
[1751716075812,0.02640521,108370.0,108360.0,2.33078134]
[1751716076092,0.02740521,108370.0,108360.0,2.33078134]
[1751716076505,0.02440521,108370.0,108360.0,2.33078134]
[1751716076717,0.02340521,108370.0,108360.0,2.33078134]
[1751716076916,0.02440521,108370.0,108360.0,2.33078134]
[1751716077184,0.05294405,108370.0,108360.0,2.33078134]
[1751716078665,0.05294405,108370.0,108360.0,1.7725031]
[1751716078961,0.05294405,108370.0,108360.0,2.33078134]
[1751716080405,0.05294405,108370.0,108360.0,1.7725031]
[1751716080621,0.02440521,108370.0,108360.0,2.33078134]
[1751716080827,0.02440532,108370.0,108360.0,2.33078134]
[1751716105993,0.02440532,108370.0,108360.0,2.31438134]
[1751716116047,0.03363219,108370.0,108360.0,2.26954134]
[1751716116252,0.03950532,108370.0,108360.0,2.31438134]
[1751716116740,0.0709182,108370.0,108360.0,2.31438134]
[1751716116966,0.08014507,108370.0,108360.0,2.31438134]
[1751716117167,0.08937212,108370.0,108360.0,2.31438134]
[1751716117404,0.08014507,108370.0,108360.0,2.03524222]
[1751716118183,0.0709182,108370.0,108360.0,2.03524222]
[1751716118728,0.0709182,108370.0,108360.0,1.73524222]
[1751716119342,0.0709182,108370.0,108360.0,2.01438134]
[1751716122175,0.56876493,108370.0,108360.0,1.10850276]
[1751716122395,0.94591925,108370.0,108360.0,1.10850276]
[1751716122594,1.07156507,108370.0,108360.0,1.10850276]
[1751716123002,1.37844819,108370.0,108360.0,1.10850276]
[1751716123210,1.13522198,108370.0,108360.0,1.10850276]
[1751716123456,1.09830907,108370.0,108360.0,1.10850276]
[1751716123638,1.10695921,108370.0,108360.0,1.10850276]
[1751716123871,0.82982009,108370.0,108360.0,1.10850276]
[1751716124011,1.11295921,108370.0,108360.0,1.10850276]
[1751716125055,1.11092606,108370.0,108360.0,1.10850276]
[1751716125249,1.10891661,108370.0,108360.0,1.10850276]
[1751716125659,1.11291661,108370.0,108360.0,1.10850276]
[1751716126061,0.83377749,108370.0,108360.0,1.10850276]
[1751716126285,1.11291661,108370.0,108360.0,1.10850276]
[1751716128375,1.14975405,108370.0,108360.0,1.10850276]
[1751716130463,1.33527405,108370.0,108360.0,1.10850276]
[1751716130868,1.33526256,108370.0,108360.0,1.10850276]
[1751716133274,1.32876875,108370.0,108360.0,1.10850276]
[1751716133677,1.32013955,108370.0,108360.0,1.10850276]
[1751716141308,1.32660937,108370.0,108360.0,1.10850276]
[1751716141846,0.84625025,108370.0,108360.0,1.32075751]
[1751716142079,0.86543906,108370.0,108360.0,1.32075751]
[1751716142295,1.17218547,108370.0,108360.0,1.32075751]
[1751716143177,1.15320652,108370.0,108360.0,1.32075751]
[1751716143626,0.96772652,108370.0,108360.0,1.32075751]
[1751716143836,0.84952416,108370.0,108360.0,1.32998549]
[1751716144037,0.94096109,108370.0,108360.0,1.32998549]
[1751716144542,0.94096109,108370.0,108360.0,1.32075751]
[1751716145567,0.94096109,108370.0,108360.0,1.32998549]
[1751716146203,1.00543385,108370.0,108360.0,1.32998549]
[1751716146493,1.01190953,108370.0,108360.0,1.32998549]
[1751716146700,0.64187661,108370.0,108360.0,1.32998549]
[1751716146903,0.65556273,108370.0,108360.0,1.35481339]
[1751716147166,0.6647902,108370.0,108360.0,1.35481339]
[1751716147578,0.6647902,108370.0,108360.0,1.63395251]
[1751716148296,0.67401776,108370.0,108360.0,1.63395251]
[1751716149159,0.72944392,108370.0,108360.0,1.63395251]
[1751716149356,0.73592476,108370.0,108360.0,1.63395251]
[1751716149887,0.72687816,108370.0,108360.0,1.63395251]
[1751716150430,0.7176506,108370.0,108360.0,1.63395251]
[1751716150662,0.7176506,108370.0,108360.0,1.35481339]
[1751716150949,0.72687816,108370.0,108360.0,1.35481339]
[1751716151584,0.7361058,108370.0,108360.0,1.35481339]
[1751716152225,0.69926836,108370.0,108360.0,1.35481339]
[1751716152444,0.54524257,108370.0,108360.0,1.63395251]
[1751716152646,0.73066056,108370.0,108360.0,1.35481339]
[1751716152859,0.73066056,108370.0,108360.0,1.63395251]
[1751716153066,0.72143309,108370.0,108360.0,1.63395251]
[1751716153277,0.72143309,108370.0,108360.0,1.35481339]
[1751716153511,0.65306899,108370.0,108360.0,1.63395251]
[1751716153716,0.65306899,108370.0,108360.0,1.35481339]
[1751716154008,0.6530689,108370.0,108360.0,1.35481339]
[1751716154251,0.4675889,108370.0,108360.0,1.35481339]
[1751716154459,0.68999977,108370.0,108360.0,1.35481339]
[1751716154650,0.68999977,108370.0,108360.0,1.63395251]
[1751716154903,0.69922716,108370.0,108360.0,1.63395251]
[1751716156072,0.59501275,108370.0,108360.0,1.63395251]
[1751716156287,0.56736692,108370.0,108360.0,1.64985251]
[1751716156499,0.68080837,108370.0,108360.0,1.64985251]
[1751716156831,0.69003559,108370.0,108360.0,1.64985251]
[1751716157810,0.63460943,108370.0,108360.0,1.64985251]
[1751716158343,0.63460943,108370.0,108360.0,1.92899163]
[1751716158344,0.08144821,108370.0,108360.0,1.92899163]
[1751716158589,0.24254165,108370.0,108360.0,1.92899163]
[1751716159360,0.21485217,108370.0,108360.0,1.92899163]
[1751716159562,0.21485217,108370.0,108360.0,1.93815891]
[1751716160564,0.21485217,108370.0,108360.0,1.97391163]
[1751716161537,0.20885217,108370.0,108360.0,1.97391163]
[1751716161751,0.21485217,108370.0,108360.0,1.97391163]
[1751716162152,0.21685217,108370.0,108360.0,1.97391163]
[1751716163563,0.21485217,108370.0,108360.0,1.97391163]
[1751716164037,0.21585217,108370.0,108360.0,1.97391163]
[1751716167718,0.21585217,108370.0,108360.0,1.69477251]
[1751716167931,0.21585217,108370.0,108360.0,1.97391163]
[1751716173360,0.21577217,108370.0,108360.0,1.41563339]
[1751716173812,0.21577217,108370.0,108360.0,1.97391163]
[1751716176058,0.24565668,108370.0,108360.0,1.97391163]
[1751716178717,0.21577217,108370.0,108360.0,1.97391163]
[1751716181184,0.03037217,108370.0,108360.0,1.97391163]
[1751716181433,0.21573217,108370.0,108360.0,1.97391163]
[1751716185354,0.24342165,108370.0,108360.0,1.97391163]
[1751716185564,0.21573217,108370.0,108360.0,1.97391163]
[1751716186069,0.24561267,108370.0,108360.0,1.97391163]
[1751716186302,0.27330215,108370.0,108360.0,1.97391163]
[1751716186716,0.24342165,108370.0,108360.0,1.97391163]
[1751716189598,0.05806165,108370.0,108360.0,1.97391163]
[1751716189831,0.24338165,108370.0,108360.0,1.97391163]
[1751716190125,0.05806165,108370.0,108360.0,1.97391163]
[1751716190468,0.03037217,108370.0,108360.0,1.97391163]
[1751716196196,0.05932602,108370.0,108360.0,1.97391163]
[1751716196824,0.03037217,108370.0,108360.0,1.97391163]
[1751716201245,0.03176237,108370.0,108360.0,1.97391163]
[1751716211231,0.03176237,108370.0,108360.0,1.95801163]
[1751716213974,0.03179071,108370.0,108360.0,1.95801163]
[1751716214184,0.03179071,108370.0,108360.0,1.39973339]
[1751716214393,0.06530586,108370.0,108360.0,1.95801163]
[1751716215393,0.06530586,108370.0,108360.0,1.94241163]
[1751716215605,0.08150586,108370.0,108360.0,1.94241163]
[1751716218271,0.10921092,108370.0,108360.0,1.94241163]
[1751716219974,0.09301092,108370.0,108360.0,1.94241163]
[1751716224965,0.09301092,108370.0,108360.0,1.94233163]
[1751716225145,0.10891092,108370.0,108360.0,1.94233163]
[1751716227049,0.10891092,108370.0,108360.0,1.66319251]
[1751716231414,0.09301092,108370.0,108360.0,1.66319251]
[1751716241085,0.11146492,108370.0,108360.0,1.38405339]
[1751716241288,0.12726484,108370.0,108360.0,1.66319251]
[1751716242532,0.1365034,108370.0,108360.0,1.66319251]
[1751716243788,0.13650331,108370.0,108360.0,1.66319251]
[1751716244011,0.14573061,108370.0,108360.0,1.66319251]
[1751716244418,0.16103061,108370.0,108360.0,1.66319251]
[1751716244994,0.15180331,108370.0,108360.0,1.66319251]
[1751716245409,0.16103053,108370.0,108360.0,1.66319251]
[1751716245673,0.16103053,108370.0,108360.0,1.61835251]
[1751716245849,0.16103061,108370.0,108360.0,1.66319251]